lending/lending_fUSD_20240120
["ID","MTS","AMOUNT","RATE_DAILY","PERIOD"]
[312325534,1705775462635,-500.0,0.00041095,31]
[312325535,1705775462646,-591.16,0.00041095,31]
[312325536,1705775462655,-500.0,0.00041095,31]
[312325537,1705775462664,-507.11615147,0.00041095,31]
[312325538,1705775462673,-500.0,0.00041095,31]
[312325539,1705775462682,-150.0,0.00041095,31]
[312325540,1705775462692,-556.75,0.00041095,31]
[312325541,1705775462702,-500.0,0.00041095,31]
[312325542,1705775462711,-500.0,0.00041095,31]
[312325543,1705775462727,-500.0,0.00041095,31]
[312325544,1705775462736,-579.49,0.00041095,31]
[312325545,1705775462745,-500.0,0.00041095,31]
[312325546,1705775462756,-500.0,0.00041095,31]
[312325547,1705775462766,-500.0,0.00041095,31]
[312325548,1705775462775,-325.94871544,0.00041095,31]
[312325549,1705775462784,-500.0,0.00041095,31]
[312325550,1705775462793,-250.0,0.00041095,31]
[312325551,1705775462802,-500.0,0.00041095,31]
[312325552,1705775462811,-500.0,0.00041095,31]
[312325553,1705775462821,-500.0,0.00041095,31]
[312325554,1705775462830,-500.0,0.00041095,31]
[312325555,1705775462839,-500.0,0.00041095,31]
[312325556,1705775462847,-500.0,0.00041095,31]
[312325557,1705775462856,-500.0,0.00041095,31]
[312325558,1705775462866,-500.0,0.00041095,31]
[312325559,1705775462875,-500.0,0.00041095,31]
[312325560,1705775462884,-500.0,0.00041095,31]
[312325561,1705775462893,-500.0,0.00041095,31]
[312325562,1705775462902,-500.0,0.00041095,31]
[312325563,1705775462911,-500.0,0.00041095,31]
[312325564,1705775462920,-342.9,0.00041095,31]
[312325565,1705775462928,-500.0,0.00041095,31]
[312325566,1705775462937,-292.08,0.00041095,31]
[312325567,1705775462946,-500.0,0.00041095,31]
[312325568,1705775462955,-500.0,0.00041095,31]
[312325569,1705775462964,-539.84,0.00041095,31]
[312325570,1705775462973,-500.0,0.00041095,31]
[312325571,1705775462982,-500.0,0.00041095,31]
[312325572,1705775462991,-284.76,0.00041095,31]
[312325573,1705775463000,-500.0,0.00041095,31]
[312325574,1705775463011,-500.0,0.00041095,31]
[312325575,1705775463020,-500.0,0.00041095,31]
[312325576,1705775463030,-500.0,0.00041095,31]
[312325577,1705775463038,-500.0,0.00041095,31]
[312325578,1705775463049,-500.0,0.00041095,31]
[312325579,1705775463059,-500.0,0.00041095,31]
[312325580,1705775463067,-507.25,0.00041095,31]
[312325581,1705775463077,-454.68,0.00041095,31]
[312325582,1705775463086,-1000.0,0.00041095,2]
[312325583,1705775463095,-500.0,0.00041095,31]
[312325584,1705775463104,-500.0,0.00041095,31]
[312325585,1705775463113,-500.0,0.00041095,31]
[312325586,1705775463122,-500.0,0.00041095,31]
[312325587,1705775463131,-500.0,0.00041095,31]
[312325588,1705775463140,-500.0,0.00041095,31]
[312325589,1705775463149,-435.15025385,0.00041095,31]
[312325590,1705775463158,-500.0,0.00041095,31]
[312325591,1705775463166,-500.0,0.00041095,31]
[312325592,1705775463175,-500.0,0.00041095,31]
[312325593,1705775463184,-500.0,0.00041095,31]
[312325594,1705775463193,-500.0,0.00041095,31]
[312325595,1705775463202,-500.0,0.00041095,31]
[312325596,1705775463212,-520.59380299,0.00041095,31]
[312325597,1705775463221,-500.0,0.00041095,31]
[312325598,1705775463230,-500.0,0.00041095,31]
[312325599,1705775463239,-500.0,0.00041095,31]
[312325600,1705775463247,-500.0,0.00041095,31]
[312325601,1705775463256,-500.0,0.00041095,2]
[312325602,1705775463266,-500.0,0.00041095,31]
[312325603,1705775463275,-500.0,0.00041095,31]
[312325604,1705775463284,-219.89,0.00041095,31]
[312325605,1705775463293,-500.0,0.00041095,31]
[312325606,1705775463301,-501.09,0.00041095,31]
[312325607,1705775463310,-299.46,0.00041095,31]
[312325608,1705775463320,-500.0,0.00041095,31]
[312325609,1705775463329,-500.0,0.00041095,31]
[312325610,1705775463338,-500.0,0.00041095,31]
[312325611,1705775463346,-500.0,0.00041095,31]
[312325612,1705775463356,-500.0,0.00041095,31]
[312325613,1705775463365,-500.0,0.00041095,31]
[312325614,1705775463374,-1374.32,0.00041095,2]
[312325615,1705775463382,-513.23511735,0.00041095,31]
[312325616,1705775463391,-500.0,0.00041095,31]
[312325617,1705775463400,-500.0,0.00041095,31]
[312325618,1705775463409,-500.0,0.00041095,31]
[312325619,1705775463418,-500.0,0.00041095,31]
[312325620,1705775463427,-500.0,0.00041095,31]
[312325621,1705775463436,-500.0,0.00041095,31]
[312325622,1705775463445,-296.42388171,0.00041095,31]
[312325623,1705775463454,-500.0,0.00041095,31]
[312325624,1705775463463,-500.0,0.00041095,31]
[312325625,1705775463472,-500.0,0.00041095,31]
[312325626,1705775463481,-500.0,0.00041095,31]
[312325627,1705775463490,-500.0,0.00041095,31]
[312325628,1705775463499,-500.0,0.00041095,31]
[312325629,1705775463509,-500.0,0.00041095,31]
[312325630,1705775463519,-500.0,0.00041095,31]
[312325631,1705775463527,-500.0,0.00041095,31]
[312325632,1705775463536,-500.0,0.00041095,31]
[312325633,1705775463546,-500.0,0.00041095,20]
[312325634,1705775463555,-500.0,0.00041095,31]
[312325635,1705775463564,-500.0,0.00041095,31]
[312325636,1705775463573,-500.0,0.00041095,31]
[312325637,1705775463583,-507.69,0.00041095,31]
[312325638,1705775463592,-500.0,0.00041095,31]
[312325639,1705775463601,-500.0,0.00041095,31]
[312325640,1705775463610,-500.0,0.00041095,31]
[312325641,1705775463619,-500.0,0.00041095,31]
[312325642,1705775463629,-830.86,0.00041095,31]
[312325643,1705775463638,-642.54,0.00041095,31]
[312325644,1705775463647,-546.58715246,0.00041095,31]
[312325645,1705775463656,-500.0,0.00041095,31]
[312325646,1705775463665,-500.0,0.00041095,31]
[312325647,1705775463674,-500.0,0.00041095,31]
[312325648,1705775463683,-500.0,0.00041095,31]
[312325649,1705775463693,-500.0,0.00041095,31]
[312325650,1705775463706,-500.0,0.00041095,31]
[312325651,1705775463716,-6242.18,0.00041095,31]
[312325652,1705775463726,-502.79054935,0.00041095,31]
[312325653,1705775463737,-500.0,0.00041095,31]
[312325654,1705775463747,-511.28719937,0.00041095,31]
[312325655,1705775463758,-500.0,0.00041095,31]
[312325656,1705775463767,-500.0,0.00041095,31]
[312325657,1705775463776,-500.0,0.00041095,31]
[312325658,1705775463786,-1670.58,0.00041095,31]
[312325659,1705775463796,-593.94,0.00041095,31]
[312325660,1705775463805,-684.42,0.00041095,31]
[312325661,1705775463814,-500.0,0.00041095,31]
[312325662,1705775463824,-500.0,0.00041095,31]
[312325663,1705775463833,-500.0,0.00041095,31]
[312325664,1705775463842,-613.93,0.00041095,31]
[312325665,1705775463852,-500.0,0.00041095,31]
[312325666,1705775463861,-500.0,0.00041095,31]
[312325667,1705775463870,-500.0,0.00041095,31]
[312325668,1705775463880,-2429.21,0.00041095,31]
[312325669,1705775463890,-500.0,0.00041095,31]
[312325670,1705775463899,-527.95807681,0.00041095,31]
[312325671,1705775463908,-500.0,0.00041095,31]
[312325672,1705775463918,-731.37,0.00041095,31]
[312325673,1705775463927,-555.98,0.00041095,31]
[312325674,1705775463936,-500.0,0.00041095,31]
[312325675,1705775463945,-500.0,0.00041095,31]
[312325676,1705775463954,-500.0,0.00041095,31]
[312325677,1705775463964,-500.0,0.00041095,31]
[312325678,1705775463973,-500.0,0.00041095,31]
[312325679,1705775463982,-500.0,0.00041095,31]
[312325680,1705775463991,-500.0,0.00041095,31]
[312325681,1705775464001,-500.0,0.00041095,31]
[312325682,1705775464013,-500.0,0.00041095,31]
[312325683,1705775464022,-500.0,0.00041095,31]
[312325684,1705775464031,-500.0,0.00041095,31]
[312325685,1705775464041,-500.0,0.00041095,31]
[312325686,1705775464050,-500.0,0.00041095,31]
[312325687,1705775464059,-326.68,0.00041095,31]
[312325688,1705775464069,-500.0,0.00041095,31]
[312325689,1705775464078,-500.0,0.00041095,5]
[312325690,1705775464087,-500.0,0.00041095,31]
[312325691,1705775464097,-500.0,0.00041095,31]
[312325692,1705775464106,-500.0,0.00041095,31]
[312325693,1705775464116,-359.85,0.00041095,31]
[312325694,1705775464126,-657.49,0.00041095,31]
[312325695,1705775464135,-168.64,0.00041095,31]
[312325696,1705775464144,-500.0,0.00041095,31]
[312325697,1705775464153,-500.0,0.00041095,31]
[312325698,1705775464163,-500.0,0.00041095,31]
[312325699,1705775464172,-3059.0,0.00041095,31]
[312325700,1705775464182,-514.36,0.00041095,31]
[312325701,1705775464192,-500.0,0.00041095,31]
[312325702,1705775464202,-2418.45,0.00041095,7]
[312325703,1705775464212,-832.27,0.00041095,31]
[312325704,1705775464221,-500.0,0.00041095,31]
[312325705,1705775464230,-652.05,0.00041095,31]
[312325706,1705775464239,-500.0,0.00041095,31]
[312325707,1705775464248,-500.0,0.00041095,31]
[312325708,1705775464260,-441.81,0.00041095,31]
[312325709,1705775464269,-500.0,0.00041095,31]
[312325710,1705775464278,-500.0,0.00041095,31]
[312325711,1705775464287,-158.41,0.00041095,31]
[312325712,1705775464296,-500.0,0.00041095,31]
[312325713,1705775464305,-500.0,0.00041095,31]
[312325714,1705775464314,-500.0,0.00041095,31]
[312325715,1705775464323,-500.0,0.00041095,31]
[312325716,1705775464332,-500.0,0.00041095,31]
[312325717,1705775464341,-500.0,0.00041095,31]
[312325718,1705775464350,-500.0,0.00041095,31]
[312325719,1705775464359,-345.15,0.00041095,31]
[312325720,1705775464368,-782.44,0.00041095,31]
[312325721,1705775464377,-500.0,0.00041095,31]
[312325722,1705775464389,-500.0,0.00041095,31]
[312325723,1705775464398,-500.0,0.00041095,31]
[312325724,1705775464407,-500.0,0.00041095,31]
[312325725,1705775464416,-659.6,0.00041095,31]
[312325726,1705775464425,-500.0,0.00041095,31]
[312325727,1705775464434,-500.0,0.00041095,31]
[312325728,1705775464443,-500.0,0.00041095,31]
[312325729,1705775464451,-500.0,0.00041095,31]
[312325730,1705775464461,-1340.08,0.00041095,31]
[312325731,1705775464470,-500.0,0.00041095,31]
[312325732,1705775464479,-500.0,0.00041095,31]
[312325733,1705775464487,-500.0,0.00041095,31]
[312325734,1705775464497,-3558.06,0.00041095,31]
[312325735,1705775464506,-500.0,0.00041095,31]
[312325736,1705775464515,-500.0,0.00041095,31]
[312325737,1705775464525,-500.0,0.00041095,31]
[312325738,1705775464534,-500.0,0.00041095,31]
[312325739,1705775464543,-372.42349208,0.00041095,31]
[312325740,1705775464553,-500.0,0.00041095,31]
[312325741,1705775464562,-500.0,0.00041095,31]
[312325742,1705775464572,-500.0,0.00041095,31]
[312325743,1705775464581,-610.46,0.00041095,31]
[312325744,1705775464591,-562.87,0.00041095,31]
[312325745,1705775464600,-500.0,0.00041095,31]
[312325746,1705775464610,-500.0,0.00041095,31]
[312325747,1705775464619,-500.0,0.00041095,31]
[312325748,1705775464628,-500.0,0.00041095,31]
[312325749,1705775464638,-4376.8,0.00041095,31]
[312325750,1705775464647,-2043.9,0.00041095,31]
[312325751,1705775464657,-576.94563883,0.00041095,31]
[312325752,1705775464667,-500.0,0.00041095,31]
[312325753,1705775464677,-296.73654483,0.00041095,31]
[312325754,1705775464686,-559.7,0.00041095,31]
[312325755,1705775464697,-500.0,0.00041095,31]
[312325756,1705775464706,-403.97611478,0.00041095,31]
[312325757,1705775464724,-647.65,0.00041095,31]
[312325758,1705775464733,-500.0,0.00041095,31]
[312325759,1705775464742,-500.0,0.00041095,31]
[312325760,1705775464752,-500.0,0.00041095,31]
[312325761,1705775464762,-500.0,0.00041095,31]
[312325762,1705775464771,-500.0,0.00041095,31]
[312325763,1705775464780,-640.43,0.00041095,31]
[312325764,1705775464790,-500.0,0.00041095,31]
[312325765,1705775464799,-500.0,0.00041095,31]
[312325766,1705775464808,-500.0,0.00041095,7]
[312325767,1705775464817,-500.0,0.00041095,31]
[312325768,1705775464827,-500.0,0.00041095,31]
[312325769,1705775464836,-500.0,0.00041095,31]
[312325770,1705775464846,-500.0,0.00041095,31]
[312325771,1705775464855,-500.0,0.00041095,31]
[312325772,1705775464864,-500.0,0.00041095,31]
[312325773,1705775464873,-500.0,0.00041095,31]
[312325774,1705775464883,-585.5,0.00041095,31]
[312325775,1705775464892,-500.0,0.00041095,31]
[312325776,1705775464901,-500.0,0.00041095,31]
[312325777,1705775464910,-500.0,0.00041095,31]
[312325778,1705775464919,-500.0,0.00041095,31]
[312325779,1705775464929,-500.0,0.00041095,31]
[312325780,1705775464937,-500.0,0.00041095,31]
[312325781,1705775464947,-180.3,0.00041095,31]
[312325782,1705775464956,-500.0,0.00041095,31]
[312325783,1705775464965,-500.0,0.00041095,31]
[312325784,1705775464974,-500.0,0.00041095,31]
[312325785,1705775464983,-500.0,0.00041095,31]
[312325786,1705775464992,-500.0,0.00041095,31]
[312325787,1705775465001,-890.52,0.00041095,31]
[312325788,1705775465011,-510.78078641,0.00041095,31]
[312325789,1705775465021,-500.0,0.00041095,31]
[312325790,1705775465030,-573.64,0.00041095,31]
[312325791,1705775465039,-525.4,0.00041095,31]
[312325792,1705775465048,-639.56,0.00041095,31]
[312325793,1705775465058,-500.0,0.00041095,31]
[312325794,1705775465068,-500.0,0.00041095,31]
[312325795,1705775465077,-500.0,0.00041095,5]
[312325796,1705775465087,-500.0,0.00041095,31]
[312325797,1705775465097,-500.0,0.00041095,31]
[312325798,1705775465107,-500.0,0.00041095,31]
[312325799,1705775465116,-612.37,0.00041095,31]
[312325800,1705775465125,-1013.83,0.00041095,31]
[312325801,1705775465134,-500.0,0.00041095,31]
[312325802,1705775465143,-1811.87,0.00041095,31]
[312325803,1705775465153,-726.59422015,0.00041095,7]
[312325804,1705775465163,-500.0,0.00041095,31]
[312325805,1705775465173,-500.0,0.00041095,31]
[312325806,1705775465184,-795.31,0.00041095,31]
[312325807,1705775465194,-500.0,0.00041095,31]
[312325808,1705775465205,-500.0,0.00041095,31]
[312325809,1705775465215,-500.0,0.00041095,31]
[312325810,1705775465225,-500.0,0.00041095,31]
[312325811,1705775465236,-483.21368401,0.00041095,31]
[312325812,1705775465246,-500.0,0.00041095,31]
[312325813,1705775465255,-980.82,0.00041095,31]
[312325814,1705775465441,-844.24,0.00041095,31]
[312325815,1705775465452,-500.0,0.00041095,31]
[312325816,1705775465461,-500.0,0.00041095,31]
[312325817,1705775465471,-532.56,0.00041095,31]
[312325818,1705775465481,-500.0,0.00041095,31]
[312325819,1705775465490,-500.0,0.00041095,10]
[312325820,1705775465499,-500.0,0.00041095,31]
[312325821,1705775465509,-500.0,0.00041095,31]
[312325822,1705775465518,-2495.42,0.00041095,31]
[312325823,1705775465528,-500.0,0.00041095,31]
[312325824,1705775465537,-500.0,0.00041095,31]
[312325825,1705775465547,-500.0,0.00041095,31]
[312325826,1705775465557,-500.0,0.00041095,31]
[312325827,1705775465566,-500.0,0.00041095,31]
[312325828,1705775465576,-500.0,0.00041095,31]
[312325829,1705775465585,-500.0,0.00041095,31]
[312325830,1705775465595,-500.0,0.00041095,31]
[312325831,1705775465605,-1622.05,0.00041095,31]
[312325832,1705775465614,-1301.27,0.00041095,31]
[312325833,1705775465624,-500.0,0.00041095,31]
[312325834,1705775465633,-500.0,0.00041095,31]
[312325835,1705775465643,-1572.37,0.00041095,31]
[312325836,1705775465652,-500.0,0.00041095,31]
[312325837,1705775465662,-591.2,0.00041095,31]
[312325838,1705775465672,-3404.0,0.00041095,31]
[312325839,1705775465681,-500.0,0.00041095,31]
[312325840,1705775465691,-500.0,0.00041095,31]
[312325841,1705775465701,-500.0,0.00041095,31]
[312325842,1705775465712,-500.0,0.00041095,31]
[312325843,1705775465724,-642.47,0.00041095,31]
[312325844,1705775465733,-500.0,0.00041095,31]
[312325845,1705775465743,-890.71,0.00041095,31]
[312325846,1705775465753,-363.13,0.00041095,31]
[312325847,1705775465764,-395.368126,0.00041095,2]
[312325848,1705775465774,-500.0,0.00041095,31]
[312325849,1705775465784,-500.0,0.00041095,31]
[312325850,1705775465793,-1519.18,0.00041095,31]
[312325851,1705775465804,-500.0,0.00041095,31]
[312325852,1705775465813,-500.0,0.00041095,31]
[312325853,1705775465822,-225.76,0.00041095,31]
[312325854,1705775465832,-409.77101655,0.00041095,31]
[312325855,1705775465842,-629.61,0.00041095,31]
[312325856,1705775465851,-500.0,0.00041095,31]
[312325857,1705775465861,-500.0,0.00041095,31]
[312325858,1705775465870,-500.0,0.00041095,31]
[312325859,1705775465880,-500.13177472,0.00041095,2]
[312325860,1705775465890,-500.0,0.00041095,31]
[312325861,1705775465899,-500.0,0.00041095,31]
[312325862,1705775465909,-273.99530113,0.00041095,31]
[312325863,1705775465919,-501.93,0.00041095,31]
[312325864,1705775465928,-500.0,0.00041095,31]
[312325865,1705775465938,-500.0,0.00041095,31]
[312325866,1705775465947,-500.0,0.00041095,31]
[312325867,1705775465956,-153.84,0.00041096,2]
[312325868,1705775465966,-1000.0,0.00041096,2]
[312325869,1705775465975,-1075.095914,0.00041096,2]
[312325870,1705775465985,-180.0,0.00041096,2]
[312325871,1705775465995,-748.44,0.00041096,2]
[312325872,1705775466004,-155.75011059,0.000411,14]
[312325873,1705775466014,-155.75011059,0.000411,14]
[312325874,1705775466024,-155.75011059,0.000411,14]
[312325875,1705775466034,-155.75011059,0.000411,14]
[312325876,1705775466043,-155.75011059,0.000411,14]
[312325877,1705775466053,-155.75011059,0.000411,14]
[312325878,1705775466062,-155.75011059,0.000411,14]
[312325879,1705775466071,-155.75011059,0.000411,14]
[312325880,1705775466081,-155.75011059,0.000411,14]
[312325881,1705775466090,-155.75011059,0.000411,14]
[312325882,1705775466100,-155.75011059,0.000411,14]
[312325883,1705775466109,-155.75011059,0.000411,14]
[312325884,1705775466118,-155.75011059,0.000411,14]
[312325885,1705775466127,-155.75011059,0.000411,14]
[312325886,1705775466137,-155.75,0.000411,14]
[312325887,1705775466146,-187.38080388,0.000411,14]
[312325888,1705775466155,-187.38080388,0.000411,14]
[312325889,1705775466164,-187.38080388,0.000411,14]
[312325890,1705775466174,-187.38,0.000411,14]
[312325891,1705775466183,-159.81969333,0.000411,14]
[312325892,1705775466193,-159.81969333,0.000411,14]
[312325893,1705775466202,-159.81969333,0.000411,14]
[312325894,1705775466211,-159.81969333,0.000411,14]
[312325895,1705775466221,-159.81969333,0.000411,14]
[312325896,1705775466229,-159.81969333,0.000411,14]
[312325897,1705775466239,-159.81969333,0.000411,14]
[312325898,1705775466249,-159.81969333,0.000411,14]
[312325899,1705775466258,-159.81969333,0.000411,14]
[312325900,1705775466267,-159.81969333,0.000411,14]
[312325901,1705775466276,-159.81969333,0.000411,14]
[312325902,1705775466286,-159.81969333,0.000411,14]
[312325903,1705775466295,-159.81969333,0.000411,14]
[312325904,1705775466304,-159.81,0.000411,14]
[312325905,1705775466314,-365.71775938,0.000411,14]
[312325906,1705775466324,-365.71775938,0.000411,14]
[312325907,1705775466333,-365.71775938,0.000411,14]
[312325908,1705775466342,-365.71775938,0.000411,14]
[312325909,1705775466352,-365.71775938,0.000411,14]
[312325910,1705775466361,-365.71775938,0.000411,14]
[312325911,1705775466370,-365.71775938,0.000411,14]
[312325912,1705775466380,-365.71775938,0.000411,14]
[312325913,1705775466389,-365.71775938,0.000411,14]
[312325914,1705775466398,-365.71775938,0.000411,14]
[312325915,1705775466408,-365.71775938,0.000411,14]
[312325916,1705775466417,-365.71775938,0.000411,14]
[312325917,1705775466426,-365.71775938,0.000411,14]
[312325918,1705775466437,-365.71775938,0.000411,14]
[312325919,1705775466446,-365.71775938,0.000411,14]
[312325920,1705775466455,-365.71775938,0.000411,14]
[312325921,1705775466465,-365.71775938,0.000411,14]
[312325922,1705775466474,-365.71775938,0.000411,14]
[312325923,1705775466484,-365.71775938,0.000411,14]
[312325924,1705775466494,-365.71,0.000411,14]
[312325925,1705775466503,-302.67222652,0.000411,14]
[312325926,1705775466513,-302.67222652,0.000411,14]
[312325927,1705775466523,-302.67222652,0.000411,14]
[312325928,1705775466533,-302.67222652,0.000411,14]
[312325929,1705775466542,-302.67222652,0.000411,14]
[312325930,1705775466552,-302.67222652,0.000411,14]
[312325931,1705775466561,-302.67222652,0.000411,14]
[312325932,1705775466570,-302.67222652,0.000411,14]
[312325933,1705775466580,-302.67222652,0.000411,14]
[312325934,1705775466590,-302.67222652,0.000411,14]
[312325935,1705775466600,-302.67222652,0.000411,14]
[312325936,1705775466610,-302.67222652,0.000411,14]
[312325937,1705775466619,-302.67222652,0.000411,14]
[312325938,1705775466629,-302.67222652,0.000411,14]
[312325939,1705775466639,-302.67222652,0.000411,14]
[312325940,1705775466648,-302.67222652,0.000411,14]
[312325941,1705775466658,-302.67222652,0.000411,14]
[312325942,1705775466668,-302.67222652,0.000411,14]
[312325943,1705775466678,-302.67222652,0.000411,14]
[312325944,1705775466687,-302.67,0.000411,14]
[312325945,1705775466697,-1147.9250302,0.00041173,2]
[312325946,1705775466708,-4531.39397828,0.00041173,2]
[312325947,1705775466732,-369.62226,0.00041173,2]
[312325948,1705775466793,235.48067339,0.00019191,2]
[312325949,1705775467579,357.88786976,0.00019191,2]
[312325950,1705775482776,175.32,0.00016712,2]
[312325951,1705775489198,1790.692252,0.00035755,30]
[312325952,1705775588543,305.810498,0.00035755,30]
[312325953,1705775689271,447.66339426,0.00017681,2]
[312325954,1705775711234,252.33660574,0.00017681,2]
[312325955,1705775711254,195.03483508,0.00017681,2]
[312325956,1705775736929,155.0,0.00017681,2]
[312325957,1705775738650,234.97295648,0.00017681,2]
[312325958,1705775750651,234.97295648,0.00017681,2]
[312325959,1705775754936,155.0,0.00017681,2]
[312325960,1705775772654,234.97295648,0.00017681,2]
[312325961,1705775775042,155.0,0.00017681,2]
[312325962,1705775790657,234.97295648,0.00017681,2]
[312325963,1705775792937,155.0,0.00017681,2]
[312325964,1705775810661,234.97295648,0.00017681,2]
[312325965,1705775812940,220.09282609,0.00017681,2]
[312325966,1705775832664,234.5550209,0.00017681,2]
[312325967,1705775873972,2382.89170624,0.00019453,2]
[312325968,1705775888832,330.89,0.0001818,2]
[312325969,1705775923376,177.01,0.00016082,2]
[312325970,1705776093795,205.0,0.00019383,2]
[312325971,1705776099594,13914.242,0.00019444,2]
[312325972,1705776099711,221.15744731,0.00019382,2]
[312325973,1705776304645,295.61943597,0.00019501,2]
[312325974,1705776305965,230.6388667,0.00019501,2]
[312325975,1705776306125,4638.11355098,0.00019501,2]
[312325976,1705776306345,1915.89251298,0.00019501,2]
[312325977,1705776309095,4628.20523515,0.00019501,2]
[312325978,1705776311066,698.16216807,0.00019501,2]
[312325979,1705776311763,1178.76061238,0.00019501,2]
[312325980,1705776314767,2605.00017996,0.00019501,2]
[312325981,1705776315896,1050.80754485,0.000195,2]
[312325982,1705776334681,155.0,0.00019501,2]
[312325983,1705776340323,22618.4614423,0.00019501,2]
[312325984,1705776342391,3191.74123019,0.00019501,2]
[312325985,1705776343572,24354.95155812,0.00019501,2]
[312325986,1705776346958,524.19831016,0.00019501,2]
[312325987,1705776350043,1071.17471746,0.00019501,2]
[312325988,1705776350082,248.83954256,0.00019501,2]
[312325989,1705776351443,272.92829241,0.00019501,2]
[312325990,1705776354966,3330.5550022,0.00019501,2]
[312325991,1705776356392,3191.74123019,0.00018724,2]
[312325992,1705776377151,295.61943597,0.00019501,2]
[312325993,1705776380407,2421.21802886,0.00018877,2]
[312325994,1705776382397,1050.80754485,0.00019501,2]
[312325995,1705776386473,230.6388667,0.00019501,2]
[312325996,1705776389597,4628.20523515,0.00019501,2]
[312325997,1705776390625,1866.471168,0.00035781,30]
[312325998,1705776395137,295.61943597,0.00019501,2]
[312325999,1705776396268,2605.00017996,0.00019501,2]
[312326000,1705776400405,1053.59230583,0.00019501,2]
[312326001,1705776402481,230.6388667,0.00019501,2]
[312326003,1705776405420,155.0,0.00019501,2]
[312326004,1705776405590,1794.47150522,0.00019501,2]
[312326005,1705776409971,622.28841052,0.000195,2]
[312326006,1705776415229,293.34951265,0.00019501,2]
[312326007,1705776420369,279.26432617,0.00019501,2]
[312326008,1705776422478,230.6388667,0.00019501,2]
[312326009,1705776423200,156.90279675,0.00019501,2]
[312326010,1705776424179,343.24758046,0.00019501,2]
[312326011,1705776428001,620.67111313,0.00018721,2]
[312326012,1705776434373,279.02550695,0.00019501,2]
[312326013,1705776437198,33387.39114312,0.00019501,2]
[312326014,1705776440547,314.34,0.00018298,2]
[312326015,1705776440740,2146.45372253,0.00019501,2]
[312326020,1705776445969,919.0043,0.00019403,2]
[312326025,1705776482517,150.0,0.00019501,2]
[312326026,1705776487903,305.810498,0.00035781,30]
[312326027,1705776502990,230.6388667,0.00019501,2]
[312326028,1705776511671,33387.39114312,0.00019501,2]
[312326029,1705776549189,1071.17471746,0.00019501,2]
[312326030,1705776554296,2605.00017996,0.00019501,2]
[312326031,1705776591751,168.32402098,0.00019404,2]
[312326060,1705776631900,-230.6388667,0.00019503,2]
[312326061,1705776631910,-639.61131189,0.00019504,2]
[312326062,1705776631921,-1274.86793295,0.00019504,2]
[312326063,1705776631931,-1102.94278926,0.00019504,2]
[312326064,1705776631940,-697.25548386,0.00019504,2]
[312326065,1705776631949,-1445.71912786,0.00019505,2]
[312326066,1705776631959,-344.75386127,0.00019524,2]
[312326067,1705776631969,-155.0,0.00019525,2]
[312326068,1705776631978,-394.57144215,0.00019562,2]
[312326069,1705776631988,-485.59833642,0.00019562,2]
[312326070,1705776631997,-1441.24,0.00019562,2]